fUSD/lending_fUSD_20250101
["ID","MTS","AMOUNT","RATE_DAILY","PERIOD"]
[347390780,1735757432011,-634.0,0.0001091,2]
[347390781,1735757432021,-76.51378352,0.0001091,2]
[347390782,1735757432052,-386.1976441,0.0001091,2]
[347390783,1735757432064,-103.28857238,0.0001091,2]
[347390784,1735757432073,-150.0,0.0001091,2]
[347390785,1735757432082,-1102.0,0.0001091,2]
[347390786,1735757432091,-1859.0,0.0001091,2]
[347390787,1735757432102,-112.64284451,0.0001091,2]
[347390788,1735757432114,-806.35715549,0.0001091,2]
[347390789,1735757432123,-1257.0,0.0001091,2]
[347390790,1735757432132,-819.0,0.0001091,2]
[347390791,1735757432142,-3774.0,0.0001091,2]
[347390792,1735757432151,-3720.0,0.0001091,2]
[347390793,1735757432161,-536.0,0.0001091,2]
[347390794,1735757432170,-150.0,0.0001091,2]
[347390795,1735757432180,-3892.0,0.0001091,2]
[347390796,1735757432189,-1172.0,0.0001091,2]
[347390797,1735757432199,-9609.0,0.0001091,2]
[347390798,1735757432208,-898.65958,0.0001091,2]
[347390799,1735757432218,-152.88,0.0001095,2]
[347390800,1735757432228,-152.57,0.0001095,2]
[347390801,1735757432238,-151.94,0.0001095,2]
[347390802,1735757432247,-151.96,0.0001095,2]
[347390803,1735757432257,-504.60369547,0.00010957,2]
[347390804,1735757432267,-500.0,0.00010957,2]
[347390805,1735757432277,-500.0,0.00010957,2]
[347390806,1735757432287,-500.0,0.00010957,2]
[347390807,1735757432296,-500.0,0.00010957,2]
[347390808,1735757432306,-306.72078791,0.00010957,2]
[347390809,1735757432320,-500.0,0.00010957,2]
[347390810,1735757432329,-500.0,0.00010957,2]
[347390811,1735757432339,-334.9,0.00010957,2]
[347390812,1735757432349,-500.0,0.00010957,2]
[347390813,1735757432358,-317.86570287,0.00010957,2]
[347390814,1735757432367,-500.0,0.00010957,2]
[347390815,1735757432377,-500.0,0.00010957,2]
[347390816,1735757432388,-500.0,0.00010957,2]
[347390817,1735757432398,-500.0,0.00010957,2]
[347390818,1735757432407,-5003.82,0.00010958,2]
[347390819,1735757432417,-500.0,0.00010958,2]
[347390820,1735757432426,-6187.55,0.00010958,2]
[347390821,1735757432435,-12604.79,0.00010958,2]
[347390822,1735757432445,-500.0,0.00010958,2]
[347390823,1735757432454,-6141.28,0.00010958,2]
[347390825,1735757432465,-500.0,0.00010958,2]
[347390826,1735757432474,-500.0,0.00010958,2]
[347390828,1735757432483,-500.0,0.00010958,2]
[347390829,1735757432492,-540.05,0.00010958,2]
[347390831,1735757432503,-12496.48,0.00010958,2]
[347390832,1735757432512,-500.0,0.00010958,2]
[347390834,1735757432522,-500.0,0.00010958,2]
[347390835,1735757432531,-500.0,0.00010958,2]
[347390837,1735757432540,-500.0,0.00010958,2]
[347390839,1735757432550,-500.0,0.00010958,2]
[347390840,1735757432559,-2024.36,0.00010958,2]
[347390842,1735757432568,-500.0,0.00010958,2]
[347390843,1735757432577,-500.0,0.00010958,2]
[347390845,1735757432587,-500.0,0.00010958,2]
[347390847,1735757432596,-203.78635793,0.00010958,2]
[347390848,1735757432606,-5012.08,0.00010958,2]
[347390850,1735757432616,-500.0,0.00010958,2]
[347390852,1735757432625,-500.0,0.00010958,2]
[347390853,1735757432634,-500.0,0.00010958,2]
[347390855,1735757432643,-500.0,0.00010958,2]
[347390857,1735757432653,-500.0,0.00010958,2]
[347390859,1735757432662,-500.0,0.00010958,2]
[347390860,1735757432671,-529.08,0.00010958,2]
[347390862,1735757432681,-624.16,0.00010958,2]
[347390864,1735757432690,-500.0,0.00010958,2]
[347390865,1735757432699,-500.0,0.00010958,2]
[347390867,1735757432709,-1424.47,0.00010958,2]
[347390869,1735757432719,-575.82,0.00010958,2]
[347390871,1735757432729,-500.0,0.00010958,2]
[347390872,1735757432739,-500.0,0.00010958,2]
[347390874,1735757432748,-500.0,0.00010958,2]
[347390875,1735757432757,-500.0,0.00010958,2]
[347390877,1735757432766,-618.08,0.00010958,2]
[347390879,1735757432776,-1421.27,0.00010958,2]
[347390881,1735757432785,-8158.96,0.00010958,2]
[347390882,1735757432795,-500.0,0.00010958,2]
[347390884,1735757432804,-500.0,0.00010958,2]
[347390886,1735757432813,-804.76,0.00010958,2]
[347390887,1735757432823,-500.0,0.00010958,2]
[347390889,1735757432833,-500.0,0.00010958,2]
[347390890,1735757432843,-500.0,0.00010958,2]
[347390891,1735757432852,-1213.09,0.00010958,2]
[347390892,1735757432861,-500.0,0.00010958,2]
[347390893,1735757432871,-500.0,0.00010958,2]
[347390894,1735757432880,-500.0,0.00010958,2]
[347390895,1735757432889,-722.13,0.00010958,2]
[347390896,1735757432899,-500.0,0.00010958,2]
[347390898,1735757432908,-500.0,0.00010958,2]
[347390900,1735757432918,-500.0,0.00010958,2]
[347390902,1735757432927,-500.0,0.00010958,2]
[347390904,1735757432937,-1207.13,0.00010958,2]
[347390906,1735757432947,-500.0,0.00010958,2]
[347390908,1735757432956,-572.71,0.00010958,2]
[347390910,1735757432967,-500.0,0.00010958,2]
[347390912,1735757432976,-560.11,0.00010958,2]
[347390914,1735757432986,-500.0,0.00010958,2]
[347390916,1735757432996,-619.77,0.00010958,2]
[347390918,1735757433005,-500.0,0.00010958,2]
[347390920,1735757433015,-669.55,0.00010958,2]
[347390922,1735757433024,-500.0,0.00010958,2]
[347390924,1735757433034,-500.0,0.00010958,2]
[347390926,1735757433044,-500.0,0.00010958,2]
[347390928,1735757433053,-641.93,0.00010958,2]
[347390930,1735757433063,-500.0,0.00010958,2]
[347390932,1735757433073,-806.47,0.00010958,2]
[347390933,1735757433083,-1337.81,0.00010958,2]
[347390935,1735757433092,-500.0,0.00010958,2]
[347390937,1735757433102,-500.0,0.00010958,2]
[347390939,1735757433112,-500.0,0.00010958,2]
[347390941,1735757433122,-4310.67,0.00010958,2]
[347390943,1735757433131,-500.0,0.00010958,2]
[347390945,1735757433141,-574.68,0.00010958,2]
[347390947,1735757433151,-500.0,0.00010958,2]
[347390948,1735757433161,-531.32,0.00010958,2]
[347390949,1735757433171,-518.32,0.00010958,2]
[347390950,1735757433181,-500.0,0.00010958,2]
[347390951,1735757433190,-977.57,0.00010958,2]
[347390952,1735757433199,-500.0,0.00010958,2]
[347390953,1735757433210,-500.0,0.00010958,2]
[347390954,1735757433220,-500.0,0.00010958,2]
[347390955,1735757433230,-812.23,0.00010958,2]
[347390956,1735757433240,-500.0,0.00010958,2]
[347390957,1735757433250,-500.0,0.00010958,2]
[347390958,1735757433260,-500.0,0.00010958,2]
[347390959,1735757433270,-1232.1,0.00010958,2]
[347390960,1735757433280,-500.0,0.00010958,2]
[347390961,1735757433289,-547.85,0.00010958,2]
[347390962,1735757433299,-1009.11,0.00010958,2]
[347390963,1735757433310,-2294.58,0.00010958,2]
[347390964,1735757433321,-715.01,0.00010958,2]
[347390965,1735757433331,-500.0,0.00010958,2]
[347390966,1735757433340,-500.0,0.00010958,2]
[347390967,1735757433351,-500.0,0.00010958,2]
[347390968,1735757433360,-537.39,0.00010958,2]
[347390969,1735757433369,-1185.97,0.00010958,2]
[347390970,1735757433379,-500.0,0.00010958,2]
[347390971,1735757433389,-2178.94,0.00010958,2]
[347390972,1735757433399,-569.56,0.00010958,2]
[347390973,1735757433408,-747.59,0.00010958,2]
[347390974,1735757433418,-500.0,0.00010958,2]
[347390975,1735757433428,-500.0,0.00010958,2]
[347390976,1735757433439,-500.0,0.00010958,2]
[347390977,1735757433450,-500.0,0.00010958,2]
[347390978,1735757433459,-500.0,0.00010958,2]
[347390979,1735757433471,-500.0,0.00010958,2]
[347390980,1735757433480,-1418.08,0.00010958,2]
[347390981,1735757433490,-500.0,0.00010958,2]
[347390982,1735757433501,-1149.52,0.00010958,2]
[347390983,1735757433511,-500.0,0.00010958,2]
[347390984,1735757433521,-952.39,0.00010958,2]
[347390985,1735757433532,-500.0,0.00010958,2]
[347390986,1735757433541,-500.0,0.00010958,2]
[347390987,1735757433551,-807.17,0.00010958,2]
[347390988,1735757433560,-500.0,0.00010958,2]
[347390989,1735757433569,-700.01,0.00010958,2]
[347390990,1735757433578,-500.0,0.00010958,2]
[347390991,1735757433588,-500.0,0.00010958,2]
[347390992,1735757433597,-500.0,0.00010958,2]
[347390993,1735757433606,-596.71,0.00010958,2]
[347390994,1735757433616,-500.0,0.00010958,2]
[347390995,1735757433625,-2939.47,0.00010958,2]
[347390996,1735757433635,-1292.04,0.00010958,2]
[347390997,1735757433644,-581.36,0.00010958,2]
[347390998,1735757433654,-500.0,0.00010958,2]
[347390999,1735757433663,-500.0,0.00010958,2]
[347391000,1735757433672,-500.0,0.00010958,2]
[347391001,1735757433683,-2062.32,0.00010958,2]
[347391002,1735757433692,-500.0,0.00010958,2]
[347391003,1735757433702,-738.27,0.00010958,2]
[347391004,1735757433713,-500.0,0.00010958,2]
[347391005,1735757433723,-1613.86,0.00010958,2]
[347391006,1735757433732,-500.0,0.00010958,2]
[347391007,1735757433742,-804.64,0.00010958,2]
[347391008,1735757433751,-2579.07,0.00010958,2]
[347391009,1735757433760,-855.98,0.00010958,2]
[347391010,1735757433770,-500.0,0.00010958,2]
[347391011,1735757433780,-1232.89,0.00010958,2]
[347391012,1735757433789,-500.0,0.00010958,2]
[347391013,1735757433798,-9524.78,0.00010958,2]
[347391014,1735757433808,-627.54,0.00010958,2]
[347391015,1735757433818,-500.0,0.00010958,2]
[347391016,1735757433827,-500.0,0.00010958,2]
[347391017,1735757433837,-500.0,0.00010958,2]
[347391018,1735757433846,-524.18,0.00010958,2]
[347391019,1735757433855,-1570.9,0.00010958,2]
[347391020,1735757433864,-500.0,0.00010958,2]
[347391021,1735757433874,-542.96,0.00010958,2]
[347391022,1735757433883,-1747.68,0.00010958,2]
[347391023,1735757433893,-500.0,0.00010958,2]
[347391024,1735757433903,-500.0,0.00010958,2]
[347391025,1735757433912,-509.36,0.00010958,2]
[347391026,1735757433921,-500.0,0.00010958,2]
[347391027,1735757433931,-1482.71,0.00010958,2]
[347391028,1735757433940,-1169.95,0.00010958,2]
[347391029,1735757433950,-500.0,0.00010958,2]
[347391030,1735757433960,-1395.07,0.00010958,2]
[347391031,1735757433970,-500.0,0.00010958,2]
[347391032,1735757433979,-500.0,0.00010958,2]
[347391033,1735757433989,-500.0,0.00010958,2]
[347391034,1735757433999,-500.0,0.00010958,2]
[347391035,1735757434009,-615.74,0.00010958,2]
[347391036,1735757434018,-3748.78,0.00010958,2]
[347391037,1735757434028,-500.0,0.00010958,2]
[347391038,1735757434038,-523.59,0.00010958,2]
[347391039,1735757434048,-1132.62,0.00010958,2]
[347391040,1735757434058,-6953.66,0.00010958,2]
[347391041,1735757434067,-924.97,0.00010958,2]
[347391042,1735757434077,-563.38,0.00010958,2]
[347391043,1735757434086,-500.0,0.00010958,2]
[347391044,1735757434096,-1703.61,0.00010958,2]
[347391045,1735757434106,-601.27,0.00010958,2]
[347391046,1735757434116,-500.0,0.00010958,2]
[347391047,1735757434126,-840.55,0.00010958,2]
[347391048,1735757434136,-598.78,0.00010958,2]
[347391049,1735757434145,-647.59,0.00010958,2]
[347391050,1735757434155,-2155.51,0.00010958,2]
[347391051,1735757434165,-500.0,0.00010958,2]
[347391052,1735757434174,-2509.12,0.00010958,2]
[347391053,1735757434184,-1550.28,0.00010958,2]
[347391054,1735757434193,-669.54,0.00010958,2]
[347391055,1735757434203,-500.0,0.00010958,2]
[347391056,1735757434213,-2789.99,0.00010958,2]
[347391057,1735757434223,-500.0,0.00010958,2]
[347391058,1735757434233,-726.53,0.00010958,2]
[347391059,1735757434242,-500.0,0.00010958,2]
[347391060,1735757434251,-643.96,0.00010958,2]
[347391061,1735757434261,-1438.8,0.00010958,2]
[347391062,1735757434271,-500.0,0.00010958,2]
[347391063,1735757434281,-1495.61,0.00010958,2]
[347391064,1735757434291,-1180.85,0.00010958,2]
[347391065,1735757434301,-1569.01,0.00010958,2]
[347391066,1735757434313,-2749.06,0.00010958,2]
[347391067,1735757434323,-500.0,0.00010958,2]
[347391068,1735757434334,-500.0,0.00010958,2]
[347391069,1735757434344,-500.0,0.00010958,2]
[347391070,1735757434354,-948.89,0.00010958,2]
[347391071,1735757434364,-541.08,0.00010958,2]
[347391072,1735757434374,-500.0,0.00010958,2]
[347391073,1735757434385,-2924.59,0.00010958,2]
[347391074,1735757434397,-500.0,0.00010958,2]
[347391075,1735757434409,-500.0,0.00010958,2]
[347391076,1735757434418,-500.0,0.00010958,2]
[347391077,1735757434428,-500.0,0.00010958,2]
[347391078,1735757434437,-500.0,0.00010958,2]
[347391079,1735757434448,-500.0,0.00010958,2]
[347391080,1735757434457,-500.0,0.00010958,2]
[347391081,1735757434469,-500.0,0.00010958,2]
[347391082,1735757434479,-500.0,0.00010958,2]
[347391083,1735757434489,-500.0,0.00010958,2]
[347391084,1735757434499,-762.43,0.00010958,2]
[347391085,1735757434509,-506.23,0.00010958,2]
[347391086,1735757434519,-1518.6,0.00010958,2]
[347391087,1735757434529,-500.0,0.00010958,2]
[347391088,1735757434539,-1214.5,0.00010958,2]
[347391089,1735757434548,-572.43,0.00010958,2]
[347391090,1735757434558,-500.0,0.00010958,2]
[347391091,1735757434568,-500.0,0.00010958,2]
[347391092,1735757434578,-2857.96,0.00010958,2]
[347391093,1735757434588,-855.488833,0.00010958,2]
[347391094,1735757434597,-500.0,0.00010958,2]
[347391095,1735757434607,-500.0,0.00010958,2]
[347391096,1735757434617,-1491.66,0.00010958,2]
[347391097,1735757434627,-500.0,0.00010958,2]
[347391098,1735757434637,-816.64,0.00010958,2]
[347391099,1735757434646,-500.0,0.00010958,2]
[347391100,1735757434656,-500.0,0.00010958,2]
[347391101,1735757434666,-500.0,0.00010958,2]
[347391102,1735757434675,-425.56140574,0.00010958,2]
[347391103,1735757434685,-500.0,0.00010958,2]
[347391104,1735757434694,-1927.28,0.00010958,2]
[347391105,1735757434704,-1676.43,0.00010958,2]
[347391106,1735757434715,-1070.42,0.00010958,2]
[347391107,1735757434724,-1322.06,0.00010958,2]
[347391108,1735757434734,-766.06,0.00010958,2]
[347391109,1735757434744,-500.0,0.00010958,2]
[347391110,1735757434754,-545.91,0.00010958,2]
[347391111,1735757434763,-500.0,0.00010958,2]
[347391112,1735757434773,-684.24,0.00010958,2]
[347391113,1735757434782,-2628.96,0.00010958,2]
[347391114,1735757434792,-500.0,0.00010958,2]
[347391115,1735757434801,-500.0,0.00010958,2]
[347391116,1735757434811,-1822.45,0.00010958,2]
[347391117,1735757434820,-500.0,0.00010958,2]
[347391118,1735757434829,-500.0,0.00010958,2]
[347391119,1735757434839,-500.0,0.00010958,2]
[347391120,1735757434848,-500.0,0.00010958,2]
[347391121,1735757434858,-1986.1,0.00010958,2]
[347391122,1735757434867,-1789.35,0.00010958,2]
[347391123,1735757434877,-500.0,0.00010958,2]
[347391124,1735757434886,-1204.42,0.00010958,2]
[347391125,1735757434896,-705.37,0.00010958,2]
[347391126,1735757434905,-500.0,0.00010958,2]
[347391127,1735757434914,-500.0,0.00010958,2]
[347391128,1735757434923,-1386.53,0.00010958,2]
[347391129,1735757434933,-1390.53,0.00010958,2]
[347391130,1735757434942,-1176.828121,0.00010958,2]
[347391131,1735757434952,-1687.55,0.00010958,2]
[347391132,1735757434961,-2140.0,0.00010958,2]
[347391133,1735757434972,-1729.83,0.00010958,2]
[347391134,1735757434982,-678.06,0.00010958,2]
[347391135,1735757434991,-687.03,0.00010958,2]
[347391136,1735757435001,-1343.15,0.00010958,2]
[347391137,1735757435010,-500.0,0.00010958,2]
[347391138,1735757435020,-1195.36,0.00010958,2]
[347391139,1735757435029,-822.24,0.00010958,2]
[347391140,1735757435038,-500.0,0.00010958,2]
[347391141,1735757435046,-976.6,0.00010958,2]
[347391142,1735757435055,-1030.99,0.00010958,2]
[347391143,1735757435064,-500.0,0.00010958,2]
[347391144,1735757435073,-1366.44,0.00010958,2]
[347391145,1735757435082,-500.0,0.00010958,2]
[347391146,1735757435091,-2277.58,0.00010958,2]
[347391147,1735757435099,-640.17,0.00010958,2]
[347391148,1735757435109,-1042.59,0.00010958,2]
[347391149,1735757435119,-1750.84,0.00010958,2]
[347391150,1735757435128,-500.0,0.00010958,2]
[347391151,1735757435138,-825.41,0.00010958,2]
[347391152,1735757435147,-500.0,0.00010958,2]
[347391153,1735757435423,-500.0,0.00010958,2]
[347391154,1735757435433,-946.25,0.00010958,2]
[347391155,1735757435443,-515.47,0.00010958,2]
[347391156,1735757435452,-1746.93,0.00010958,2]
[347391157,1735757435461,-670.44,0.00010958,2]
[347391158,1735757435474,-500.0,0.00010958,2]
[347391159,1735757435484,-500.0,0.00010958,2]
[347391160,1735757435494,-500.0,0.00010958,2]
[347391161,1735757435504,-500.0,0.00010958,2]
[347391162,1735757435513,-1930.32,0.00010958,2]
[347391163,1735757435523,-500.0,0.00010958,2]
[347391164,1735757435533,-500.0,0.00010958,2]
[347391165,1735757435542,-570.97,0.00010958,2]
[347391166,1735757435551,-813.4,0.00010958,2]
[347391167,1735757435561,-884.26,0.00010958,2]
[347391168,1735757435571,-3812.58,0.00010958,2]
[347391169,1735757435580,-500.0,0.00010958,2]
[347391170,1735757435590,-500.0,0.00010958,2]
[347391171,1735757435600,-500.0,0.00010958,2]
[347391172,1735757435610,-2775.15,0.00010958,2]
[347391173,1735757435619,-500.0,0.00010958,2]
[347391174,1735757435629,-500.0,0.00010958,2]
[347391175,1735757435639,-656.35,0.00010958,2]
[347391176,1735757435648,-500.0,0.00010958,2]
[347391177,1735757435658,-678.67,0.00010958,2]
[347391178,1735757435667,-500.0,0.00010958,2]
[347391179,1735757435676,-500.0,0.00010958,2]
[347391180,1735757435686,-2234.27,0.00010958,2]
[347391181,1735757435696,-1287.48,0.00010958,2]
[347391182,1735757435705,-500.0,0.00010958,2]
[347391183,1735757435715,-500.0,0.00010958,2]
[347391184,1735757435725,-500.0,0.00010958,2]
[347391185,1735757435735,-1142.69,0.00010958,2]
[347391186,1735757435746,-500.0,0.00010958,2]
[347391187,1735757435756,-1150.0,0.00010958,2]
[347391188,1735757435766,-500.0,0.00010958,2]
[347391189,1735757435775,-3148.6,0.00010958,2]
[347391190,1735757435784,-500.0,0.00010958,2]
[347391191,1735757435794,-500.0,0.00010958,2]
[347391192,1735757435803,-500.0,0.00010958,2]
[347391193,1735757435813,-702.96,0.00010958,2]
[347391194,1735757435823,-626.52102783,0.00010958,2]
[347391195,1735757435832,-500.0,0.00010958,2]
[347391196,1735757435843,-4096.02,0.00010958,2]
[347391197,1735757435852,-500.0,0.00010958,2]
[347391198,1735757435862,-606.07,0.00010958,2]
[347391199,1735757435871,-1449.4,0.00010958,2]
[347391200,1735757435880,-500.0,0.00010958,2]
[347391201,1735757435890,-500.0,0.00010958,2]
[347391202,1735757435899,-500.0,0.00010958,2]
[347391203,1735757435910,-1245.87,0.00010958,2]
[347391204,1735757435920,-1457.36,0.00010958,2]
[347391205,1735757435929,-638.48,0.00010958,2]
[347391206,1735757435939,-500.0,0.00010958,2]
[347391207,1735757435949,-836.73,0.00010958,2]
[347391208,1735757435959,-982.73,0.00010958,2]
[347391209,1735757435970,-1642.97,0.00010958,2]
[347391210,1735757435980,-2198.41,0.00010958,2]
[347391211,1735757435989,-500.0,0.00010958,2]
[347391212,1735757435998,-500.0,0.00010958,2]
[347391213,1735757436008,-500.0,0.00010958,2]
[347391214,1735757436017,-1012.75,0.00010958,2]
[347391215,1735757436027,-500.0,0.00010958,2]
[347391216,1735757436036,-1083.91,0.00010958,2]
[347391217,1735757436046,-500.0,0.00010958,2]
[347391218,1735757436055,-500.0,0.00010958,2]
[347391219,1735757436065,-1670.8,0.00010958,2]
[347391220,1735757436075,-634.24,0.00010958,2]
[347391221,1735757436084,-547.77,0.00010958,2]
[347391222,1735757436094,-500.0,0.00010958,2]
[347391223,1735757436103,-1117.76,0.00010958,2]
[347391224,1735757436113,-1112.5,0.00010958,2]
[347391225,1735757436123,-500.0,0.00010958,2]
[347391226,1735757436131,-500.0,0.00010958,2]
[347391227,1735757436141,-534.79,0.00010958,2]
[347391228,1735757436150,-1783.05,0.00010958,2]
[347391229,1735757436160,-338.07085866,0.00010958,2]
[347391230,1735757436169,-500.0,0.00010958,2]
[347391231,1735757436179,-500.0,0.00010958,2]
[347391232,1735757436188,-1540.01,0.00010958,2]
[347391233,1735757436197,-500.0,0.00010958,2]
[347391234,1735757436207,-500.0,0.00010958,2]
[347391235,1735757436218,-848.71,0.00010958,2]
[347391236,1735757436227,-778.37,0.00010958,2]
[347391237,1735757436237,-500.0,0.00010958,2]
[347391238,1735757436247,-174.22188404,0.00010958,2]
[347391239,1735757436257,-1197.71,0.00010958,2]
[347391240,1735757436267,-926.97,0.00010958,2]
[347391241,1735757436277,-591.93,0.00010958,2]
[347391242,1735757436287,-1687.7,0.00010958,2]
[347391243,1735757436296,-3067.08,0.00010958,2]
[347391244,1735757436307,-1483.12,0.00010958,2]
[347391245,1735757436319,-829.38,0.00010958,2]
[347391246,1735757436328,-500.0,0.00010958,2]
[347391247,1735757436339,-910.19,0.00010958,2]
[347391248,1735757436348,-535.72,0.00010958,2]
[347391249,1735757436359,-500.0,0.00010958,2]
[347391250,1735757436368,-500.0,0.00010958,2]
[347391251,1735757436378,-1429.14,0.00010958,2]
[347391252,1735757436387,-2204.74,0.00010958,2]
[347391253,1735757436399,-500.0,0.00010958,2]
[347391254,1735757436408,-500.0,0.00010958,2]
[347391255,1735757436419,-835.75,0.00010958,2]
[347391256,1735757436428,-576.02,0.00010958,2]
[347391257,1735757436437,-1757.74,0.00010958,2]
[347391258,1735757436446,-500.0,0.00010958,2]
[347391259,1735757436455,-1978.51,0.00010958,2]
[347391260,1735757436467,-518.19,0.00010958,2]
[347391261,1735757436476,-500.0,0.00010958,2]
[347391262,1735757436486,-586.02,0.00010958,2]
[347391263,1735757436495,-671.3,0.00010958,2]
[347391264,1735757436504,-500.0,0.00010958,2]
[347391265,1735757436513,-500.0,0.00010958,2]
[347391266,1735757436522,-500.0,0.00010958,2]
[347391267,1735757436531,-1034.31,0.00010958,2]
[347391268,1735757436540,-899.46,0.00010958,2]
[347391269,1735757436550,-500.0,0.00010958,2]
[347391270,1735757436559,-1022.02,0.00010958,2]
[347391271,1735757436569,-500.0,0.00010958,2]
[347391272,1735757436579,-2211.3,0.00010958,2]
[347391273,1735757436588,-1318.04,0.00010958,2]
[347391274,1735757436598,-500.0,0.00010958,2]
[347391275,1735757436607,-795.08,0.00010958,2]
[347391276,1735757436616,-500.0,0.00010958,2]
[347391277,1735757436626,-3271.01,0.00010958,2]
[347391278,1735757436636,-1485.2,0.00010958,2]
[347391279,1735757436645,-500.0,0.00010958,2]
[347391280,1735757436654,-1694.98,0.00010958,2]
[347391281,1735757436664,-500.0,0.00010958,2]
[347391282,1735757436673,-500.0,0.00010958,2]
[347391283,1735757436682,-1438.72,0.00010958,2]
[347391284,1735757436692,-673.91,0.00010958,2]
[347391285,1735757436701,-875.66,0.00010958,2]
[347391286,1735757436711,-715.3,0.00010958,2]
[347391287,1735757436725,-947.44,0.00010958,2]
[347391288,1735757436735,-500.0,0.00010958,2]
[347391289,1735757436745,-871.96,0.00010958,2]
[347391290,1735757436755,-2112.02,0.00010958,2]
[347391291,1735757436765,-500.0,0.00010958,2]
[347391292,1735757436774,-1651.4,0.00010958,2]
[347391293,1735757436784,-773.55,0.00010958,2]
[347391294,1735757436794,-1147.97,0.00010958,2]
[347391295,1735757436803,-1952.88,0.00010958,2]
[347391296,1735757436813,-1187.45,0.00010958,2]
[347391297,1735757436822,-989.13,0.00010958,2]
[347391298,1735757436832,-2932.3,0.00010958,2]
[347391299,1735757436842,-500.0,0.00010958,2]
[347391300,1735757436851,-303.15697552,0.00010958,2]
[347391301,1735757436860,-500.0,0.00010958,2]
[347391302,1735757436870,-562.41,0.00010958,2]
[347391303,1735757436879,-1236.43,0.00010958,2]
[347391304,1735757436889,-806.32,0.00010958,2]
[347391305,1735757436898,-500.0,0.00010958,2]
[347391306,1735757436907,-500.0,0.00010958,2]
[347391307,1735757436917,-1398.89,0.00010958,2]
[347391308,1735757436926,-500.0,0.00010958,2]
[347391309,1735757436935,-807.14,0.00010958,2]
[347391310,1735757436945,-1786.53,0.00010958,2]
[347391311,1735757436954,-1512.88,0.00010958,2]
[347391312,1735757436963,-500.0,0.00010958,2]
[347391313,1735757436974,-500.0,0.00010958,2]
[347391314,1735757436983,-500.0,0.00010958,2]
[347391315,1735757436992,-962.15,0.00010958,2]
[347391316,1735757437001,-500.0,0.00010958,2]
[347391317,1735757437011,-869.36,0.00010958,2]
[347391318,1735757437020,-500.0,0.00010958,2]
[347391319,1735757437029,-1424.08,0.00010958,2]
[347391320,1735757437038,-926.66,0.00010958,2]
[347391321,1735757437047,-500.0,0.00010958,2]
[347391322,1735757437057,-500.0,0.00010958,2]
[347391323,1735757437066,-776.67,0.00010958,2]
[347391324,1735757437075,-1178.96,0.00010958,2]
[347391325,1735757437084,-5974.53,0.00010958,2]
[347391326,1735757437093,-500.0,0.00010958,2]
[347391327,1735757437103,-500.0,0.00010958,2]
[347391328,1735757437112,-1070.21,0.00010958,2]
[347391329,1735757437121,-269.9690249,0.00010958,2]
[347391330,1735757437130,-811.82,0.00010958,2]